bitfinex/quotes_BTCUSD_20251104
["timestamp","ask_amount","ask_price","bid_price","bid_amount"]
[1762219863126,0.20929422,107150.0,107140.0,0.0150841]
[1762219863336,0.001,107150.0,107140.0,0.22431574]
[1762219863842,0.18765422,107150.0,107140.0,0.20175574]
[1762219864508,0.18714922,107150.0,107140.0,0.20175574]
[1762219864748,0.20878922,107150.0,107140.0,0.0001441]
[1762219864975,3.83698837,107150.0,107140.0,0.0001441]
[1762219865849,3.83649337,107150.0,107140.0,0.0001441]
[1762219866082,3.7469341,107150.0,107140.0,0.0001441]
[1762219866307,3.7499341,107150.0,107140.0,0.0001441]
[1762219866529,3.62004713,107150.0,107140.0,0.0001441]
[1762219866753,3.62073799,107150.0,107140.0,0.0001441]
[1762219867192,3.58907799,107150.0,107140.0,0.18681574]
[1762219867424,0.00369086,107150.0,107140.0,0.24011574]
[1762219868764,0.00169086,107150.0,107140.0,0.24011574]
[1762219869055,0.18934508,107150.0,107140.0,0.24011574]
[1762219869267,0.18834508,107150.0,107140.0,0.24011574]
[1762219869951,0.00169086,107150.0,107140.0,0.24011574]
[1762219870367,0.18834508,107150.0,107140.0,0.24011574]
[1762219870733,0.00169086,107150.0,107140.0,0.24011574]
[1762219872134,0.18834508,107150.0,107140.0,0.24011574]
[1762219872347,0.61873799,107150.0,107140.0,0.0001441]
[1762219872781,4.08192777,107150.0,107140.0,0.0001441]
[1762219873639,4.08092777,107150.0,107140.0,0.0001441]
[1762219874698,4.08192777,107150.0,107140.0,0.0001441]
[1762219874919,4.08592777,107150.0,107140.0,0.0001441]
[1762219875123,4.08692777,107150.0,107140.0,0.0001441]
[1762219875964,0.18672392,107110.0,107100.0,4.6e-05]
[1762219876177,0.22056392,107110.0,107100.0,0.18693156]
[1762219876595,0.22056392,107110.0,107100.0,0.0001902]
[1762219876810,3.62944683,107110.0,107100.0,0.0001902]
[1762219877017,3.7190061,107110.0,107100.0,0.0001902]
[1762219878258,3.7190061,107110.0,107100.0,0.0021902]
[1762219878460,3.62944683,107110.0,107100.0,0.0021902]
[1762219878737,3.62944683,107110.0,107100.0,0.0051902]
[1762219878943,3.62944683,107110.0,107100.0,0.0031902]
[1762219879147,3.96944683,107110.0,107100.0,0.0001902]
[1762219879362,3.97044683,107110.0,107100.0,0.0001902]
[1762219882713,3.94390753,107110.0,107100.0,0.0001902]
[1762219882939,0.341,107110.0,107100.0,0.20735156]
[1762219883164,0.52772392,107110.0,107100.0,0.0206102]
[1762219883381,0.52772392,107110.0,107100.0,0.20735156]
[1762219883807,0.54747392,107110.0,107100.0,0.18693156]
[1762219884432,0.90481683,107110.0,107100.0,0.18693156]
[1762219884643,0.71809291,107110.0,107100.0,0.18693156]
[1762219885177,0.71809291,107110.0,107100.0,0.20735156]
[1762219885388,0.341,107110.0,107100.0,0.24098156]
[1762219885797,0.001,107110.0,107100.0,0.27716384]
[1762219887221,0.00023033,107130.0,107120.0,0.18670649]
[1762219887425,0.00023033,107130.0,107120.0,0.22323649]
[1762219887633,0.00023033,107130.0,107120.0,0.25686649]
[1762219888411,0.00123033,107130.0,107120.0,0.25686649]
[1762219888838,0.6151923,107130.0,107110.0,0.01582]
[1762219889042,0.37709291,107120.0,107110.0,0.20254392]
[1762219889250,3.20827939,107130.0,107120.0,0.18670649]
[1762219889456,0.00123033,107130.0,107120.0,0.23675649]
[1762219890083,0.18691939,107130.0,107120.0,0.23675649]
[1762219890490,0.18791939,107130.0,107120.0,0.23675649]
[1762219890921,0.18691939,107130.0,107110.0,0.23272392]
[1762219891144,0.18670649,107120.0,107110.0,0.2689062]
[1762219891590,0.18791939,107130.0,107120.0,0.18670649]
[1762219891805,0.00023033,107130.0,107120.0,0.20657649]
[1762219892021,0.18791939,107130.0,107120.0,0.20657649]
[1762219892231,0.00123033,107130.0,107120.0,0.23675649]
[1762219892449,0.18791939,107130.0,107120.0,0.23675649]
[1762219893116,0.18691939,107130.0,107120.0,0.23675649]
[1762219893334,0.5640123,107130.0,107120.0,0.01987]
[1762219893560,0.18670649,107120.0,107110.0,0.20254392]
[1762219893820,0.5650123,107130.0,107110.0,0.25259392]
[1762219894072,0.18670649,107120.0,107110.0,0.25259392]
[1762219894277,0.18670649,107120.0,107110.0,0.06587]
[1762219894489,0.18670649,107120.0,107110.0,0.25259392]
[1762219894706,0.18670649,107120.0,107110.0,0.25359392]
[1762219896095,0.18670649,107120.0,107110.0,0.03669]
[1762219896345,0.18670649,107120.0,107110.0,0.22341392]
[1762219896550,0.18670649,107120.0,107110.0,0.22441392]
[1762219896769,0.18670649,107120.0,107110.0,0.03769]
[1762219896982,0.5640123,107130.0,107110.0,0.22441392]
[1762219897188,3.18670649,107120.0,107110.0,0.25459392]
[1762219897395,0.18670649,107120.0,107110.0,0.25459392]
[1762219897816,3.5640123,107130.0,107120.0,0.18670649]
[1762219898031,3.5640123,107130.0,107110.0,0.23272392]
[1762219898239,3.18670649,107120.0,107110.0,0.23272392]
[1762219898451,0.18670649,107120.0,107110.0,0.23272392]
[1762219898634,0.18670649,107120.0,107110.0,0.25259392]
[1762219899732,0.18670649,107120.0,107110.0,0.25359392]
[1762219899942,0.18670649,107120.0,107110.0,0.06687]
[1762219900400,0.18670649,107120.0,107110.0,0.03769]
[1762219900621,3.99107231,107120.0,107110.0,0.002]
[1762219900830,3.6139794,107120.0,107110.0,0.002]
[1762219901036,4.33107231,107120.0,107110.0,0.002]
[1762219901250,3.9539794,107120.0,107110.0,0.002]
[1762219901520,0.9241594,107120.0,107110.0,0.002]
[1762219901740,0.18692039,107130.0,107110.0,0.23877392]
[1762219901960,0.18692039,107130.0,107120.0,0.20657649]
[1762219902411,0.00023033,107130.0,107120.0,0.23675649]
[1762219902629,0.18691939,107130.0,107120.0,0.23675649]
[1762219902836,0.00023033,107130.0,107120.0,0.23675649]
[1762219903056,0.18691939,107130.0,107120.0,0.05005]
[1762219903274,0.18670649,107120.0,107110.0,0.06636228]
[1762219903483,0.18670649,107120.0,107110.0,0.2530862]
[1762219903720,0.18670649,107120.0,107110.0,0.2729562]
[1762219903926,0.18670649,107120.0,107110.0,0.08623228]
[1762219904139,0.5637994,107120.0,107110.0,0.23677392]
[1762219904332,0.18670649,107120.0,107110.0,0.20759392]
[1762219904577,0.18670649,107120.0,107110.0,0.02087]
[1762219904790,0.5637994,107120.0,107110.0,0.23706392]
[1762219905004,0.5640123,107130.0,107110.0,0.23706392]
[1762219905224,0.18670649,107120.0,107110.0,0.23706392]
[1762219905436,0.18670649,107120.0,107110.0,0.23806392]
[1762219905829,0.18670649,107120.0,107110.0,0.23706392]
[1762219906371,0.18670649,107120.0,107110.0,0.02087]
[1762219906802,0.5637994,107120.0,107110.0,0.20759392]
[1762219907137,0.5837494,107120.0,107110.0,0.002]
[1762219907364,0.6145494,107120.0,107110.0,0.002]
[1762219907786,0.5837494,107120.0,107110.0,0.002]
[1762219908198,3.6145494,107120.0,107110.0,0.002]
[1762219908405,3.99164231,107120.0,107110.0,0.002]
[1762219908613,3.99164231,107120.0,107110.0,0.001]
[1762219908828,3.18672392,107110.0,107100.0,0.0001902]
[1762219909088,3.62344683,107110.0,107100.0,0.0001902]
[1762219911605,3.59364683,107110.0,107100.0,0.0001902]
[1762219911822,0.18772392,107110.0,107100.0,0.23627156]
[1762219912676,0.001,107110.0,107100.0,0.23627156]
[1762219913354,0.001,107110.0,107100.0,0.27245384]
[1762219914503,0.00023033,107130.0,107120.0,0.18670649]
[1762219914713,0.00023033,107130.0,107120.0,0.22161649]
[1762219914928,0.00023033,107130.0,107120.0,0.25108649]
[1762219915347,0.18691939,107130.0,107120.0,0.25108649]
[1762219915555,0.18691939,107130.0,107120.0,0.01504]
[1762219915763,0.18791939,107130.0,107120.0,0.20174649]
[1762219916180,0.18791939,107130.0,107120.0,0.22161649]
[1762219916603,0.18791939,107130.0,107120.0,0.03491]
[1762219916851,0.18791939,107130.0,107120.0,0.22161649]
[1762219917052,0.5650123,107130.0,107120.0,0.03491]
[1762219917901,0.18791939,107130.0,107120.0,0.03491]
[1762219918107,0.18791939,107130.0,107120.0,0.22161649]
[1762219918321,0.00123033,107130.0,107120.0,0.25108649]
[1762219919374,0.18791939,107130.0,107120.0,0.06438]
[1762219919789,0.18791939,107130.0,107120.0,0.25108649]
[1762219919994,0.18791939,107130.0,107120.0,0.25208649]
[1762219920631,0.00123033,107130.0,107120.0,0.28826877]
[1762219921078,0.00023033,107130.0,107120.0,0.28826877]
[1762219921508,0.00023033,107130.0,107120.0,0.62926877]
[1762219922334,0.00023033,107130.0,107120.0,0.62726877]
[1762219922545,0.00023033,107130.0,107120.0,0.63126877]
[1762219922746,0.00023033,107130.0,107120.0,0.63826877]
[1762219923603,1e-08,107130.0,107120.0,0.64826876]
[1762219923822,0.00928,107190.0,107180.0,0.18660197]
[1762219923823,0.19586456,107190.0,107180.0,0.18660197]
[1762219924037,0.18660197,107180.0,107170.0,0.22278606]
[1762219924309,0.18660197,107180.0,107170.0,0.26729606]
[1762219924543,0.18660197,107180.0,107170.0,0.28716606]
[1762219924977,0.1870822,107180.0,107170.0,0.28716606]
[1762219925194,0.18661938,107170.0,107150.0,0.19787402]
[1762219925399,0.37709291,107160.0,107150.0,0.19787422]
[1762219925585,0.56372971,107160.0,107150.0,0.07687228]
[1762219925826,0.56372971,107160.0,107150.0,0.09674228]
[1762219926038,0.1866368,107160.0,107150.0,0.2833965]
[1762219926447,0.77550944,107180.0,107160.0,0.1866368]
[1762219926710,3.0,107170.0,107160.0,0.2359768]
[1762219927797,0.18661938,107170.0,107160.0,0.01987]
[1762219928024,0.18661938,107170.0,107160.0,0.04934]
[1762219928250,0.18754031,107170.0,107160.0,0.04934]
[1762219928471,0.18854031,107170.0,107160.0,0.01987]
[1762219929739,0.00192093,107170.0,107160.0,0.2359768]
[1762219930181,0.00192093,107170.0,107160.0,0.27215908]
[1762219930907,0.18854031,107170.0,107160.0,0.08552228]
[1762219931109,0.18754031,107170.0,107160.0,0.27215908]
[1762219931267,0.18754031,107170.0,107160.0,0.27515908]
[1762219931793,0.18754031,107170.0,107160.0,0.27415908]
[1762219931988,0.18754031,107170.0,107160.0,0.27215908]
[1762219932203,0.78658746,107170.0,107160.0,0.002]
[1762219932600,0.20749031,107170.0,107160.0,0.002]
[1762219932802,0.78658746,107170.0,107160.0,0.002]
[1762219932984,0.78658746,107170.0,107160.0,0.1886368]
[1762219933158,0.58001808,107170.0,107160.0,0.2085068]
[1762219933369,0.76663746,107170.0,107160.0,0.2075068]
[1762219933576,0.18754031,107170.0,107160.0,0.2065068]
[1762219933799,0.18854031,107170.0,107160.0,0.2065068]
[1762219934213,0.00192093,107170.0,107160.0,0.2359768]
[1762219934436,0.00192093,107170.0,107160.0,0.27215908]
[1762219935739,3.1865941,107200.0,107190.0,0.03407]
[1762219935980,0.18671114,107200.0,107190.0,0.22065456]
[1762219936197,0.00014398,107200.0,107190.0,0.22065456]
[1762219936407,0.00014398,107200.0,107190.0,0.25215456]
[1762219936611,0.18671114,107200.0,107190.0,0.25215456]
[1762219936832,0.00014398,107200.0,107190.0,0.25215456]
[1762219937255,0.00214398,107200.0,107190.0,0.25215456]
[1762219937475,0.18871114,107200.0,107190.0,0.03407]
[1762219937896,0.18671114,107200.0,107190.0,0.03407]
[1762219938111,0.19071114,107200.0,107190.0,0.25215456]
[1762219938582,0.00414398,107200.0,107190.0,0.25215456]
[1762219939214,0.00414398,107200.0,107190.0,0.28833684]
[1762219939913,0.00114398,107200.0,107190.0,0.28833684]
[1762219940329,0.00114398,107200.0,107190.0,0.29033684]
[1762219940539,0.18671114,107200.0,107190.0,0.29033684]
[1762219940759,0.00014398,107200.0,107190.0,0.29033684]
[1762219941178,0.00014398,107200.0,107190.0,0.29433684]
[1762219941391,0.00083435,107200.0,107190.0,0.29433684]
[1762219943516,0.76649866,107200.0,107190.0,0.10775228]
[1762219943742,0.78524866,107200.0,107190.0,0.0206]
[1762219943964,3.81416866,107200.0,107190.0,0.006]
[1762219944396,4.15416866,107200.0,107190.0,0.002]
[1762219944604,0.18660197,107180.0,107170.0,0.0146]
[1762219944851,0.76569912,107180.0,107170.0,0.0146]
[1762219945065,0.18661938,107170.0,107160.0,0.23273488]
[1762219945274,0.18661938,107170.0,107160.0,0.23741908]
[1762219945490,0.78446653,107170.0,107160.0,0.0146]
[1762219945700,0.1866368,107160.0,107150.0,0.01122]
[1762219945912,0.1866368,107160.0,107150.0,0.19787422]
[1762219946161,0.81338653,107170.0,107150.0,0.19787422]
[1762219946162,0.76571653,107170.0,107150.0,0.24884422]
[1762219946375,0.77502921,107180.0,107160.0,0.05097]
[1762219946584,0.18661938,107170.0,107160.0,0.01947]
[1762219946761,0.18661938,107170.0,107160.0,0.05097]
[1762219946996,0.18671181,107170.0,107160.0,0.05097]
[1762219947204,0.76561296,107170.0,107160.0,0.01947]
[1762219947879,0.18676331,107170.0,107160.0,0.2386068]
[1762219948091,0.81353046,107170.0,107160.0,0.001]
[1762219948305,0.78461046,107170.0,107160.0,0.001]
[1762219949194,0.1866368,107160.0,107150.0,0.22851316]
[1762219949616,0.1866368,107160.0,107150.0,0.24821316]
[1762219949822,0.76573395,107160.0,107150.0,0.03092]
[1762219950005,0.78470395,107160.0,107150.0,0.01122]
[1762219950260,0.18665422,107150.0,107140.0,0.01122]
[1762219950476,0.18665422,107150.0,107130.0,0.01485]
[1762219950477,0.18667164,107140.0,107130.0,0.01485]
[1762219950916,0.18667164,107140.0,107120.0,0.1867061]
[1762219950917,0.18670649,107120.0,107110.0,0.0146]
[1762219951128,0.18670649,107120.0,107110.0,0.20132392]
[1762219951361,0.18670649,107120.0,107110.0,0.0146]
[1762219951784,0.18672392,107110.0,107100.0,4.6e-05]
[1762219952000,0.79066107,107110.0,107100.0,4.6e-05]
[1762219952204,0.79066107,107110.0,107100.0,0.00052623]
[1762219952414,0.00587,107110.0,107100.0,0.20696759]
[1762219952628,0.57909715,107120.0,107100.0,0.23760759]
[1762219952840,0.57909715,107120.0,107110.0,0.25191392]
[1762219952841,0.34,107120.0,107110.0,0.25191392]
[1762219953051,0.52669002,107130.0,107110.0,0.25191392]
[1762219953266,3.0,107130.0,107120.0,0.23704649]
[1762219954343,0.18667226,107140.0,107120.0,0.23704649]
[1762219954552,0.18667226,107140.0,107130.0,0.22123906]
[1762219954756,0.18667226,107140.0,107130.0,0.25187906]
[1762219955438,0.18667226,107140.0,107130.0,0.06519]
[1762219955646,0.18667226,107140.0,107130.0,0.25187906]
[1762219956053,0.18667226,107140.0,107130.0,0.25287906]
[1762219956264,0.18667164,107140.0,107130.0,0.25287906]
[1762219956472,0.18667164,107140.0,107130.0,0.25387906]
[1762219956673,0.23513145,107160.0,107140.0,0.18667164]
[1762219956674,0.77506579,107160.0,107140.0,0.18667164]
[1762219956788,0.20385864,107160.0,107140.0,0.23701164]
[1762219956996,0.20385864,107160.0,107150.0,0.01485]
[1762219957204,0.1945268,107160.0,107150.0,0.20150422]
[1762219957413,0.1866368,107160.0,107150.0,0.25184422]
[1762219957647,0.78298705,107170.0,107150.0,0.25184422]
[1762219957855,0.78298705,107170.0,107160.0,0.0197]
[1762219957856,0.20403383,107170.0,107160.0,0.0197]
[1762219958058,0.54403383,107170.0,107160.0,0.0197]
[1762219958475,0.18681287,107170.0,107160.0,0.2369768]
[1762219958681,0.18676331,107170.0,107160.0,0.2369768]
[1762219958895,0.18676331,107170.0,107160.0,0.05034]
[1762219959097,0.18676331,107170.0,107160.0,0.0197]
[1762219959299,0.18776331,107170.0,107160.0,0.2063368]
[1762219959506,0.18776331,107170.0,107160.0,0.2369768]
[1762219959720,0.19565331,107170.0,107160.0,0.0197]
[1762219960344,0.1866368,107160.0,107150.0,0.04549]
[1762219960561,0.1866368,107160.0,107150.0,0.23214422]
[1762219960762,0.77475046,107170.0,107150.0,0.25184422]
[1762219960967,0.1866368,107160.0,107150.0,0.25184422]
[1762219961589,0.1866368,107160.0,107150.0,0.25284422]
[1762219962427,0.77375046,107170.0,107150.0,0.25284422]
[1762219962658,0.1866368,107160.0,107150.0,0.25284422]
[1762219962899,0.1866368,107160.0,107150.0,0.06619]
[1762219963104,0.81370395,107160.0,107150.0,0.001]
[1762219963928,3.81370395,107160.0,107150.0,0.001]
[1762219964336,0.18666605,107150.0,107140.0,0.18667164]
[1762219964540,0.7657632,107150.0,107140.0,0.18667164]
[1762219965359,0.7657632,107150.0,107130.0,0.23217906]
[1762219965560,0.18667164,107140.0,107130.0,0.26836134]
[1762219966266,0.57909715,107150.0,107140.0,0.18667164]
[1762219966444,0.76575137,107150.0,107140.0,0.18667164]
[1762219966643,0.18667164,107140.0,107130.0,0.27136134]
[1762219967105,0.18667164,107140.0,107130.0,0.29071134]
[1762219967549,0.76576879,107140.0,107130.0,0.0372]
[1762219967994,0.76576879,107140.0,107130.0,0.01785]
[1762219968218,0.76576879,107140.0,107130.0,0.20953906]
[1762219968566,0.76576879,107140.0,107130.0,0.22888906]
[1762219968786,0.76576879,107140.0,107130.0,0.0422]
[1762219968991,0.76576879,107140.0,107130.0,0.22888906]
[1762219969718,0.18667164,107140.0,107130.0,0.22888906]
[1762219969921,1.10573416,107160.0,107150.0,0.18665422]
[1762219970204,0.34,107160.0,107150.0,0.22086422]
[1762219970348,0.19465355,107170.0,107160.0,0.1866368]
[1762219970560,0.34803393,107170.0,107160.0,0.2059868]
[1762219970759,0.34014393,107170.0,107160.0,0.2350268]
[1762219970962,0.00014393,107170.0,107160.0,0.2350268]
[1762219971781,0.00114393,107170.0,107160.0,0.2350268]
[1762219972119,0.00214393,107170.0,107160.0,0.2350268]
[1762219972502,0.00214393,107170.0,107160.0,0.27120908]
[1762219972682,0.00114393,107170.0,107160.0,0.27120908]
[1762219973537,0.00014393,107170.0,107160.0,0.27120908]
[1762219973939,0.00014393,107170.0,107160.0,0.27320908]
[1762219974213,0.00014393,107170.0,107160.0,0.08957228]
[1762219974423,0.00014393,107170.0,107160.0,0.27620908]
[1762219974635,0.18676331,107170.0,107160.0,0.27620908]
[1762219975080,0.76586046,107170.0,107160.0,0.2109868]
[1762219975306,0.76586046,107170.0,107160.0,0.2400268]
[1762219975530,0.00014393,107170.0,107160.0,0.2400268]
[1762219976489,0.18676331,107170.0,107160.0,0.05339]
[1762219976732,0.18676331,107170.0,107160.0,0.005]
[1762219977187,0.78428046,107170.0,107160.0,0.005]
[1762219977419,0.81330046,107170.0,107160.0,0.005]
[1762219977653,3.81330046,107170.0,107160.0,0.005]
[1762219977880,3.78428046,107170.0,107160.0,0.005]
[1762219978324,3.81330046,107170.0,107160.0,0.005]
[1762219978779,3.93429388,107170.0,107160.0,0.005]
[1762219980370,4.27429388,107170.0,107160.0,0.005]
[1762219980594,4.29178115,107170.0,107160.0,0.003]
[1762219980817,0.18670649,107120.0,107110.0,0.01485]
[1762219981006,0.76580364,107120.0,107110.0,0.01485]
[1762219981238,0.89006505,107120.0,107110.0,0.20157392]
[1762219981374,0.3109679,107120.0,107110.0,0.20157392]
[1762219981580,0.12426141,107120.0,107110.0,0.24996392]
[1762219981989,0.12426141,107120.0,107110.0,0.28662643]
[1762219982197,0.52667345,107140.0,107130.0,0.18668906]
[1762219982368,0.46615374,107140.0,107130.0,0.18668906]
[1762219982577,0.31282538,107140.0,107130.0,0.18668906]
[1762219983530,0.31282538,107140.0,107130.0,0.20154906]
[1762219983724,0.12615374,107140.0,107130.0,0.24993906]
[1762219983937,0.12615374,107140.0,107130.0,0.28612134]
[1762219984565,0.18665422,107150.0,107140.0,0.18665817]
[1762219984771,0.19799703,107160.0,107150.0,0.18665422]
[1762219985164,0.18667164,107140.0,107130.0,0.05104228]
[1762219985408,0.18668906,107130.0,107110.0,0.21091011]
[1762219985640,0.18670649,107120.0,107110.0,0.23995011]
[1762219985831,0.12399362,107120.0,107110.0,0.27613239]
[1762219985998,0.12399362,107120.0,107110.0,0.26692262]
[1762219986421,0.12399362,107120.0,107110.0,0.29596262]
[1762219986632,0.12399362,107120.0,107110.0,0.29796262]
[1762219987248,0.12399362,107120.0,107110.0,0.29596262]
[1762219987470,0.12399362,107120.0,107110.0,0.29796262]
[1762219987696,0.12399362,107120.0,107110.0,0.30196262]
[1762219988148,0.18667288,107140.0,107130.0,0.18668906]
[1762219988570,0.69119746,107140.0,107130.0,0.18668906]
[1762219989238,0.1274374,107140.0,107130.0,0.22089906]
[1762219989416,0.1274374,107140.0,107130.0,0.24993906]
[1762219989684,0.31410904,107140.0,107130.0,0.24993906]
[1762219989911,0.31410904,107140.0,107130.0,0.22089906]
[1762219990435,0.31410904,107140.0,107130.0,0.01486]
[1762219990635,0.69119622,107140.0,107130.0,0.01486]
[1762219991040,0.69119622,107140.0,107130.0,0.20154906]
[1762219992037,0.50452458,107140.0,107130.0,0.20154906]
[1762219992230,0.69119622,107140.0,107130.0,0.22089906]
[1762219992437,0.1274374,107140.0,107130.0,0.22089906]
[1762219993017,0.31410904,107140.0,107130.0,0.22089906]
[1762219993607,0.18670487,107130.0,107110.0,0.05151251]
[1762219993817,0.69046067,107120.0,107110.0,0.05151251]
[1762219994034,0.70888067,107120.0,107110.0,0.01533023]
[1762219994976,0.70888067,107120.0,107110.0,0.00048023]
[1762219994977,0.73513067,107120.0,107110.0,0.00048023]
[1762219995178,0.73513067,107120.0,107110.0,0.00248023]
[1762219995547,0.73513067,107120.0,107110.0,0.00048023]
[1762219995886,0.73513067,107120.0,107110.0,0.00448023]
[1762219996020,0.126667,107120.0,107110.0,0.23630415]
[1762219996228,0.126667,107120.0,107110.0,0.27448643]
[1762219996428,0.18667164,107140.0,107120.0,0.1866907]
[1762219996635,0.18667164,107140.0,107130.0,0.01376]
[1762219996831,0.31425611,107140.0,107130.0,0.20044906]
[1762219997525,0.31425611,107140.0,107130.0,0.01376]
[1762219998216,0.18668906,107130.0,107120.0,0.03618228]
[1762219998460,0.32058899,107130.0,107120.0,0.03618228]
[1762219998655,0.32058899,107130.0,107120.0,0.22288877]
[1762219998872,0.69767617,107130.0,107120.0,0.22288877]
[1762219999295,0.13389993,107130.0,107120.0,0.24043877]
[1762219999496,0.31199899,107130.0,107120.0,0.26798877]
[1762219999700,0.31199899,107130.0,107120.0,0.08128228]
[1762219999919,0.31199899,107130.0,107120.0,0.26798877]
[1762220000120,0.31199899,107130.0,107120.0,0.26998877]
[1762220000319,0.31199899,107130.0,107120.0,0.27098877]
[1762220000577,0.31199899,107130.0,107120.0,0.24343877]
[1762220000959,0.32058899,107130.0,107120.0,0.24343877]
[1762220001160,0.12530993,107130.0,107120.0,0.27098877]
[1762220002030,0.31199899,107130.0,107120.0,0.27098877]
[1762220002463,0.12530993,107130.0,107120.0,0.27098877]
[1762220003843,0.70641617,107130.0,107120.0,0.03918228]
[1762220004051,0.70641617,107130.0,107120.0,0.003]
[1762220004234,0.73266617,107130.0,107120.0,0.003]
[1762220007792,0.51972711,107130.0,107120.0,0.18970649]
[1762220008004,0.12530993,107130.0,107120.0,0.23480649]
[1762220009079,0.12530993,107130.0,107120.0,0.27098877]
[1762220009868,0.31199899,107130.0,107120.0,0.27098877]
[1762220010076,0.31199899,107130.0,107120.0,0.24343877]
[1762220010278,0.12530993,107130.0,107120.0,0.26966877]
[1762220011322,0.20732887,107160.0,107140.0,0.18665533]
[1762220011452,0.57508398,107160.0,107150.0,0.01322]
[1762220011650,0.57508398,107160.0,107140.0,0.1998902]
[1762220011651,0.18665422,107150.0,107140.0,0.1998902]
[1762220011851,0.69882993,107160.0,107140.0,0.2181802]
[1762220012057,0.12374595,107150.0,107140.0,0.2444102]
[1762220012655,0.12374595,107150.0,107140.0,0.24489187]
[1762220012855,0.12474595,107150.0,107140.0,0.24489187]
[1762220014565,0.12574595,107150.0,107140.0,0.24489187]
[1762220015228,0.12374595,107150.0,107140.0,0.24489187]
[1762220015433,0.12374595,107150.0,107140.0,0.28107415]
[1762220015896,0.57506656,107170.0,107160.0,0.1866368]
[1762220016104,0.70013725,107170.0,107160.0,0.1866368]
[1762220016603,0.71764725,107170.0,107150.0,0.21286854]
[1762220016803,0.31409051,107160.0,107150.0,0.18665422]
[1762220017012,0.69117769,107160.0,107150.0,0.18665422]
[1762220017213,0.50454089,107160.0,107150.0,0.23117422]
[1762220017409,0.12745371,107160.0,107150.0,0.2673565]
[1762220017870,0.31409051,107160.0,107150.0,0.2673565]
[1762220018074,0.12745371,107160.0,107150.0,0.2693565]
[1762220018643,0.12745371,107160.0,107150.0,0.2703565]
[1762220019756,0.31409051,107160.0,107150.0,0.2703565]
[1762220020205,0.69117769,107160.0,107150.0,0.05747228]
[1762220020410,0.70868769,107160.0,107150.0,0.03918228]
[1762220020805,0.70868769,107160.0,107150.0,0.05747228]
[1762220020806,0.69117769,107160.0,107150.0,0.05747228]
[1762220020968,0.69117769,107160.0,107150.0,0.2703565]
[1762220021169,0.50454089,107160.0,107150.0,0.2703565]
[1762220021363,0.69117769,107160.0,107150.0,0.2703565]
[1762220022065,0.50454089,107160.0,107150.0,0.2703565]
[1762220022280,0.12745371,107160.0,107150.0,0.2703565]
[1762220022480,0.31409051,107160.0,107150.0,0.2703565]
[1762220022891,0.31409051,107160.0,107150.0,0.08370228]
[1762220023108,0.70868769,107160.0,107150.0,0.003]
[1762220024137,0.70868769,107160.0,107140.0,0.26278365]
[1762220024374,0.18665422,107150.0,107140.0,0.26278365]
[1762220024601,0.31335968,107150.0,107140.0,0.26278415]
[1762220024819,0.69044686,107150.0,107140.0,0.28152415]
[1762220025266,0.69044686,107150.0,107140.0,0.09485251]
[1762220025484,0.69044686,107150.0,107140.0,0.06862251]
[1762220025729,0.50379264,107150.0,107140.0,0.28207415]
[1762220025943,0.31335968,107150.0,107140.0,0.28307415]
[1762220026374,0.31335968,107150.0,107140.0,0.09640251]
[1762220026590,0.31335968,107150.0,107140.0,0.25629415]
[1762220026797,0.31335968,107150.0,107140.0,0.25829415]
[1762220027053,0.31335968,107150.0,107140.0,0.28507415]
[1762220027271,0.12670546,107150.0,107140.0,0.28507415]
[1762220029051,0.91029741,107180.0,107160.0,0.1866368]
[1762220029257,0.31208499,107170.0,107160.0,0.2192168]
[1762220029466,0.31208499,107170.0,107160.0,0.2459968]
[1762220029831,0.70038217,107170.0,107160.0,0.03258]
[1762220029998,0.1866368,107160.0,107150.0,0.23667573]
[1762220030171,0.68791086,107160.0,107150.0,0.28219573]
[1762220030351,0.68791086,107160.0,107150.0,0.2554165]
[1762220030737,0.70515086,107160.0,107150.0,0.2366765]
[1762220031601,0.70515086,107160.0,107150.0,0.05002228]
[1762220032813,0.70515086,107160.0,107150.0,0.03618228]
[1762220033232,0.18665422,107150.0,107140.0,0.01370023]
[1762220033459,0.5637414,107150.0,107140.0,0.23655415]
[1762220033675,0.50216655,107150.0,107140.0,0.28207415]
[1762220033896,0.12507937,107150.0,107140.0,0.28207415]
[1762220034570,0.19782965,107170.0,107160.0,0.1866368]
[1762220034790,0.19782965,107170.0,107160.0,0.2192168]
[1762220034995,0.32118418,107170.0,107160.0,0.2459968]
[1762220035180,0.30997391,107170.0,107160.0,0.2459968]
[1762220036390,0.12335453,107170.0,107160.0,0.2459968]
[1762220036792,0.30997391,107170.0,107160.0,0.2459968]
[1762220037229,0.68706109,107170.0,107160.0,0.2459968]
[1762220039037,0.68706109,107170.0,107160.0,0.2192168]
[1762220039421,0.68706109,107170.0,107160.0,0.2459968]
[1762220039561,0.68706109,107170.0,107160.0,0.03258]
[1762220039970,0.1866368,107160.0,107150.0,0.01384]
[1762220040204,0.70868339,107160.0,107150.0,0.01384]
[1762220040421,0.18665422,107150.0,107140.0,0.24588773]
[1762220040651,0.00653017,107180.0,107160.0,0.18663261]
[1762220040780,0.00023017,107180.0,107170.0,0.20535938]
[1762220040983,0.12794958,107180.0,107170.0,0.26832166]
[1762220042819,0.52794054,107200.0,107180.0,0.18660197]
[1762220043023,0.68538003,107190.0,107170.0,0.25287262]
[1762220043230,0.56367174,107190.0,107180.0,0.18660197]
[1762220043455,0.64578277,107190.0,107180.0,0.20534197]
[1762220043903,0.64583076,107190.0,107180.0,0.20534197]
[1762220044337,0.64583076,107190.0,107180.0,0.01874]
[1762220044545,0.64583076,107190.0,107180.0,0.20534197]
[1762220045051,0.4592462,107190.0,107180.0,0.23212197]
[1762220046119,0.4592462,107190.0,107180.0,0.20534197]
[1762220046315,0.18660197,107180.0,107170.0,0.25891262]
[1762220046589,0.66405916,107180.0,107160.0,0.2134165]
[1762220046811,0.20384197,107180.0,107170.0,0.18661938]
[1762220047020,0.18660197,107180.0,107170.0,0.20535938]
[1762220047237,0.26861559,107180.0,107170.0,0.01874]
[1762220047440,0.26861559,107180.0,107170.0,0.20535938]
[1762220047650,0.26861559,107180.0,107170.0,0.20635938]
[1762220047968,0.26861559,107180.0,107170.0,0.01974]
[1762220048171,0.64570277,107180.0,107170.0,0.01974]
[1762220048370,0.84764967,107180.0,107170.0,0.02174]
[1762220048591,0.08201362,107180.0,107170.0,0.20835938]
[1762220048804,0.08201362,107180.0,107170.0,0.27132166]
[1762220055734,0.84764967,107180.0,107170.0,0.08470228]
[1762220055936,0.86528967,107180.0,107170.0,0.003]
[1762220056208,0.86528967,107180.0,107170.0,0.28825359]
[1762220056209,0.08201362,107180.0,107170.0,0.28825359]
[1762220056378,0.08201362,107180.0,107170.0,0.26959166]
[1762220057410,0.08201362,107180.0,107170.0,0.26759166]
[1762220057824,0.08201362,107180.0,107170.0,0.27159166]
[1762220058424,0.08201362,107180.0,107170.0,0.27059166]
[1762220058627,0.08201362,107180.0,107170.0,0.61059166]